{"text_format":"1","workbook":"xlsx","n_sheets":3,"sheets":["25-27 Current (Example)","25-27 Proposed","OB1 Program Alignment File"],"not_rendered":{"charts":0,"images":1,"macros":0,"external_links":0,"defined_names":4,"comments":4,"pivot_tables":0},"unopened":[],"bounds":{"document_bytes":16777216,"sheet_cells":100000,"rows_first":2000,"rows_last":500,"rows_between":2000,"halvings":0,"cell_chars":16384,"cell_head_chars":4096},"cells_cut":0,"cells_raw":0,"read":"whole","date_system":"1900"}

{"sheet":"25-27 Current (Example)","index":0,"n_rows":30,"n_cols":14,"rows_kept":30,"cut":false,"hidden":false,"merged":[[11,0,11,2],[11,3,11,11]]}
[null,null,null,null,null,null,"No change from Submitted version"]
[null,null,null,null,null,null,"New or revised program level or title"]
[null,null,null,null,null,null,"Delete/Remove from Program Structure"]
[null,null,null,null,null,null,"Duplicate numbers, must be resolved.  (conditional formatting will automatically identify)"]
[]
[]
[]
[]
[]
[]
[]
["2025-27 ORBITS Current",null,null,"Program Level (D04 profile)"]
["Rptng"]
["Lvl Type","Description","X Ref #",1,2,3,"4","5","6","7","8","Title","Comments and Proposed changes"]
[null,"Dept of Planning","33200-000-00-00-00000",10,null,null,null,null,null,null,null,"Dept of Planning",null,{"$f":"IF(LEN(L15)>40,\"ERR\",\"\")","v":""}]
[null,null,null,null,20,null,null,null,null,null,null,"Dept of Planning",null,{"$f":"IF(LEN(L16)>40,\"ERR\",\"\")","v":""}]
["B","Planning & Innovation","33200-100-00-00-00000",null,null,100,null,null,null,null,null,"Planning & Innovation",null,""]
["A","Planning","33200-100-01-00-00000",null,null,null,1100,null,null,null,null,"Efficiency Services",null,""]
["A","Innovation","33200-100-02-00-00000",null,null,null,1200,null,null,null,null,"Innovation",null,""]
[]
["B"," Development Services","33200-200-00-00-00000",null,null,200,null,null,null,null,null," Development Services",null,""]
["A"," Loan Program","33200-200-04-00-00000",null,null,null,2400,null,null,null,null," Loan Program",null,""]
["A","Efficiency Financing","33200-200-05-00-00000",null,null,null,2500,null,null,null,null,"Efficiency Financing",null,""]
["A","Incentive Programs","33200-200-06-00-00000",null,null,null,2600,null,null,null,null,"Incentive Programs",null,""]
[null,null,null,null,null,null,2700,null,null,null,null,"Elearning ",null,""]
[]
["B","Administrative Services","33200-300-00-00-00000",null,null,500,null,null,null,null,null,"Administrative Services",null,""]
["A","Administrative Services","33200-300-01-00-00000",null,null,null,5100,null,null,null,null,"Administrative Services",null,""]
["A","Accounting Services","33200-300-02-00-0000",null,null,null,5200,null,null,null,null,"Central Services",null,""]
["A","Strategic initiatives","33200-300-03-00-0000",null,null,null,5300,null,null,null,null,"strategic initiatives",null,""]

{"sheet":"25-27 Proposed","index":1,"n_rows":32,"n_cols":14,"rows_kept":32,"cut":false,"hidden":false,"merged":[[11,0,11,2],[11,3,11,11]]}
[null,null,null,null,null,null,"No change from Submitted version"]
[null,null,null,null,null,null,"New or revised program level or title"]
[null,null,null,null,null,null,"Delete/Remove from Program Structure"]
[null,null,null,null,null,null,"Duplicate numbers, must be resolved.  (conditional formatting will automatically identify)"]
[]
[]
[]
[]
[]
[]
[]
["2025-27 ORBITS Proposed Changes",null,null,"Program Level (D04 profile)"]
["Rptng"]
["Lvl Type","Description","X Ref #",1,2,3,"4","5","6","7","8","Title","Comments and Proposed changes"]
[null,"Dept of Planning","33200-000-00-00-00000",10,null,null,null,null,null,null,null,"Dept of Planning",null,{"$f":"IF(LEN(L15)>40,\"ERR\",\"\")","v":""}]
[null,null,null,null,20,null,null,null,null,null,null,"Dept of Planning",null,{"$f":"IF(LEN(L16)>40,\"ERR\",\"\")","v":""}]
["B","Planning, Innovation, and Strategy","33200-100-00-00-00000",null,null,100,null,null,null,null,null,"Planning, Innovation, and Strategy","Title change x-ref and D04",""]
["A","Planning","33200-100-01-00-00000",null,null,null,1100,null,null,null,null,"Efficiency Services",null,""]
["A","Innovation and Design","33200-100-02-00-00000",null,null,null,1200,null,null,null,null,"Innovation ","Title change x-ref ",""]
[null,null,null,null,null,null,1300,null,null,null,null,"Design","New D04"]
[null,null,null,null,null,null,1400,null,null,null,null,"Strategic initiatives","New D04. Moved from 5300"]
["B"," Development Services","33200-200-00-00-00000",null,null,200,null,null,null,null,null," Development Services",null,""]
["A"," Loan Program","33200-200-04-00-00000",null,null,null,2400,null,null,null,null," Loan Program",null,""]
["A","Efficiency Financing","33200-200-05-00-00000",null,null,null,2500,null,null,null,null,"Efficiency Financing",null,{"$f":"IF(LEN(L24)>40,\"ERR\",\"\")","v":""}]
["A","Incentive Programs","33200-200-06-00-00000",null,null,null,2600,null,null,null,null,"Incentive Programs","Delete D04 and x-ref.",""]
[null,null,null,null,null,null,2700,null,null,null,null,"eLearning ","Please inactivate. This D04 is no longer needed, but it has been used in the new biennium accidentally and transactions were posted."]
[]
["B","Administrative Services","33200-300-00-00-00000",null,null,500,null,null,null,null,null,"Administrative Services",null,{"$f":"IF(LEN(L28)>40,\"ERR\",\"\")","v":""}]
["A","Administrative Services","33200-300-01-00-00000",null,null,null,5100,null,null,null,null,"Administrative Services",null,""]
["A","Accounting Services","33200-300-02-00-0000",null,null,null,5200,null,null,null,null,"Central Services",null,""]
["A","Strategic initiatives","33200-300-03-00-0000",null,null,null,5300,null,null,null,null,"strategic initiatives","Delete D04 and move to 1400",""]
["A","Budget Services","33200-300-04-00-0000",null,null,null,5400,null,null,null,null,"Budget Services","new x-ref. and new D04"]

{"sheet":"OB1 Program Alignment File","index":2,"n_rows":1,"n_cols":1,"rows_kept":1,"cut":false,"hidden":false,"merged":[]}
["To help make sure the Program Alignment Spreadsheet is current, SABRS created an OB1 file titled “ORBITS to R*Stars Program Alignment” for agencies to use. This file can be exported as a basic template for your current Program Alignment Spreadsheet (note additional formatting and title reference maybe needed). "]